fUSD/lending_fUSD_20240117
["ID","MTS","AMOUNT","RATE_DAILY","PERIOD"]
[311909799,1705493440863,-152.57,0.00021073,2]
[311909801,1705493440874,-156.66,0.00021083,2]
[311909803,1705493440883,-156.66,0.00021159,2]
[311909805,1705493440895,-156.07,0.00021206,2]
[311909807,1705493440905,-152.57,0.00021219,2]
[311909809,1705493440914,-156.66,0.00021234,2]
[311909811,1705493440923,-6966.87487966,0.00021299,2]
[311909813,1705493440933,-418.32135682,0.00021301,2]
[311909815,1705493440943,-156.66,0.0002131,2]
[311909817,1705493440952,-152.57,0.00021366,2]
[311909819,1705493440962,-156.66,0.00021386,2]
[311909821,1705493440971,-202.67,0.00021506,2]
[311909823,1705493440981,-152.57,0.00021512,2]
[311909825,1705493440991,-163.46,0.00021553,2]
[311909828,1705493441003,-281.06093368,0.00021597,2]
[311909830,1705493441013,-193.39019381,0.00021597,2]
[311909832,1705493441022,-246.15177983,0.00021597,2]
[311909833,1705493441031,-222.80459909,0.00021597,4]
[311909836,1705493441041,-164.87,0.00021658,2]
[311909838,1705493441050,-152.57,0.00021658,2]
[311909840,1705493441060,-162.22955914,0.0002173,2]
[311909841,1705493441070,-256.83,0.00021735,2]
[311909842,1705493441080,-5000.0,0.000218,2]
[311909843,1705493441090,-152.57,0.00021805,2]
[311909844,1705493441100,-343.02606752,0.00021815,2]
[311909845,1705493441110,-155.93996978,0.00021816,2]
[311909846,1705493441120,-250.0,0.00021817,2]
[311909847,1705493441129,-4439.0357,0.00021817,2]
[311909848,1705493441139,-23927.6899445,0.00021817,2]
[311909858,1705493441219,-1071.97348575,0.00021817,2]
[311909860,1705493441230,-27550.23669078,0.00021817,2]
[311909862,1705493441242,-9820.83737897,0.00021817,2]
[311909864,1705493441252,-256.83,0.00021872,2]
[311909866,1705493441261,-500.0,0.00021917,2]
[311909868,1705493441270,-500.0,0.00021917,2]
[311909870,1705493441280,-500.0,0.00021917,2]
[311909872,1705493441290,-500.0,0.00021917,2]
[311909874,1705493441299,-500.0,0.00021917,2]
[311909876,1705493441309,-183.60558591,0.00021917,2]
[311910059,1705493443035,-316.39441409,0.00021917,2]
[311910061,1705493443044,-500.0,0.00021917,2]
[311910063,1705493443054,-500.0,0.00021917,2]
[311910065,1705493443063,-500.0,0.00021917,2]
[311910067,1705493443072,-500.0,0.00021917,2]
[311910069,1705493443082,-500.0,0.00021917,2]
[311910071,1705493443092,-500.0,0.00021917,2]
[311910073,1705493443102,-500.0,0.00021917,2]
[311910075,1705493443114,-500.0,0.00021917,2]
[311910077,1705493443123,-500.0,0.00021917,2]
[311910079,1705493443133,-518.42,0.00021917,2]
[311910081,1705493443142,-500.0,0.00021917,2]
[311910083,1705493443151,-500.0,0.00021917,2]
[311910085,1705493443160,-510.68,0.00021917,2]
[311910087,1705493443170,-611.88,0.00021917,2]
[311910089,1705493443179,-500.0,0.00021917,2]
[311910091,1705493443189,-500.0,0.00021917,2]
[311910093,1705493443198,-500.0,0.00021917,2]
[311910097,1705493443217,-500.0,0.00021917,2]
[311910099,1705493443227,-250.0,0.00021918,2]
[311910101,1705493443237,-152.57,0.00021951,2]
[311910103,1705493443246,-272.8775063,0.00022009,2]
[311910105,1705493443256,-231.4864611,0.00022088,2]
[311910107,1705493443265,-209.66429938,0.00022091,2]
[311910109,1705493443275,-152.57,0.00022097,2]
[311910111,1705493443285,-1023.71201196,0.00022183,3]
[311910113,1705493443294,-633.11664535,0.00022183,2]
[311910115,1705493443304,-523.73846155,0.00022183,2]
[311910118,1705493443318,-542.84106609,0.00022183,2]
[311910120,1705493443329,-500.0,0.00022184,2]
[311910122,1705493443339,-536.34,0.00022184,2]
[311910124,1705493443350,-757.61,0.00022184,2]
[311910126,1705493443362,-510.35,0.00022184,2]
[311910128,1705493443373,-500.0,0.00022184,2]
[311910130,1705493443383,-500.0,0.00022184,2]
[311910132,1705493443393,-500.0,0.00022184,2]
[311910134,1705493443403,-500.0,0.00022184,2]
[311910136,1705493443413,-575.26,0.00022184,2]
[311910138,1705493443424,-500.0,0.00022184,2]
[311910140,1705493443434,-610.94,0.00022184,2]
[311910142,1705493443446,-500.0,0.00022184,2]
[311910144,1705493443458,-500.0,0.00022184,2]
[311910146,1705493443468,-500.0,0.00022184,2]
[311910148,1705493443478,-500.0,0.00022184,2]
[311910150,1705493443488,-426.82339245,0.00022185,3]
[311910152,1705493443497,-500.0,0.00022185,2]
[311910154,1705493443508,-500.0,0.00022185,2]
[311910156,1705493443517,-500.0,0.00022185,2]
[311910158,1705493443529,-500.0,0.00022185,2]
[311910160,1705493443540,-500.0,0.00022185,2]
[311910162,1705493443549,-500.0,0.00022185,2]
[311910165,1705493443558,-150.0,0.00022185,2]
[311910167,1705493443568,-500.0,0.00022185,2]
[311910169,1705493443577,-150.0,0.00022185,2]
[311910171,1705493443587,-500.0,0.00022185,2]
[311910173,1705493443597,-500.0,0.00022185,2]
[311910174,1705493443608,-500.0,0.00022185,2]
[311910177,1705493443617,-500.0,0.00022185,2]
[311910179,1705493443627,-500.0,0.00022185,2]
[311910181,1705493443636,-500.0,0.00022185,2]
[311910183,1705493443645,-500.0,0.00022185,2]
[311910185,1705493443655,-500.0,0.00022185,2]
[311910188,1705493443665,-500.0,0.00022185,2]
[311910190,1705493443674,-500.0,0.00022185,2]
[311910192,1705493443683,-500.0,0.00022185,2]
[311910194,1705493443692,-214.16,0.00022185,2]
[311910196,1705493443702,-500.0,0.00022185,2]
[311910198,1705493443713,-500.0,0.00022185,2]
[311910200,1705493443723,-500.0,0.00022185,2]
[311910202,1705493443733,-500.0,0.00022185,2]
[311910204,1705493443743,-500.0,0.00022185,2]
[311910206,1705493443752,-293.83,0.00022185,2]
[311910208,1705493443761,-500.0,0.00022185,2]
[311910210,1705493443771,-500.0,0.00022185,2]
[311910212,1705493443781,-442.48,0.00022185,2]
[311910214,1705493443791,-500.0,0.00022185,2]
[311910215,1705493443802,-500.0,0.00022185,2]
[311910216,1705493443811,-572.01,0.00022185,2]
[311910217,1705493443822,-500.0,0.00022185,2]
[311910218,1705493443832,-154.72,0.00022185,2]
[311910219,1705493443841,-287.81126267,0.00022185,2]
[311910220,1705493443850,-500.0,0.00022185,2]
[311910221,1705493443862,-500.0,0.00022185,2]
[311910222,1705493443871,-7377.05647498,0.00022185,2]
[311910223,1705493443883,-553.8,0.00022185,2]
[311910224,1705493443892,-233.12709957,0.00022185,2]
[311910225,1705493443901,-500.0,0.00022185,5]
[311910226,1705493443910,-184.77981935,0.00022185,2]
[311910227,1705493443919,-294.20737805,0.00022185,2]
[311910228,1705493443928,-500.0,0.00022185,2]
[311910229,1705493443938,-500.0,0.00022185,2]
[311910230,1705493443947,-500.0,0.00022185,2]
[311910231,1705493443957,-383.86171178,0.00022185,2]
[311910232,1705493443967,-151.88,0.00022185,2]
[311910233,1705493443976,-500.0,0.00022185,2]
[311910234,1705493443985,-500.0,0.00022185,2]
[311910235,1705493443995,-500.0,0.00022185,2]
[311910236,1705493444004,-500.0,0.00022185,2]
[311910237,1705493444013,-500.0,0.00022185,2]
[311910238,1705493444023,-500.0,0.00022185,2]
[311910239,1705493444033,-500.0,0.00022185,2]
[311910240,1705493444043,-500.0,0.00022185,2]
[311910241,1705493444052,-500.0,0.00022185,2]
[311910242,1705493444061,-500.0,0.00022185,2]
[311910243,1705493444071,-500.0,0.00022185,2]
[311910244,1705493444080,-500.0,0.00022185,2]
[311910245,1705493444090,-500.0,0.00022185,2]
[311910246,1705493444099,-500.0,0.00022185,2]
[311910247,1705493444110,-500.0,0.00022185,2]
[311910248,1705493444119,-500.0,0.00022185,2]
[311910249,1705493444129,-500.0,0.00022185,2]
[311910250,1705493444138,-500.0,0.00022185,2]
[311910251,1705493444148,-341.08,0.00022185,2]
[311910252,1705493444157,-500.0,0.00022185,2]
[311910253,1705493444167,-500.0,0.00022185,2]
[311910254,1705493444176,-500.0,0.00022185,2]
[311910255,1705493444185,-500.0,0.00022185,2]
[311910256,1705493444195,-500.0,0.00022185,2]
[311910257,1705493444204,-500.0,0.00022185,2]
[311910258,1705493444214,-500.0,0.00022185,2]
[311910259,1705493444223,-500.0,0.00022185,2]
[311910260,1705493444233,-500.0,0.00022185,2]
[311910261,1705493444243,-509.49873228,0.00022185,2]
[311910262,1705493444252,-500.0,0.00022185,2]
[311910263,1705493444262,-500.0,0.00022185,2]
[311910264,1705493444271,-500.0,0.00022185,2]
[311910265,1705493444280,-500.0,0.00022185,2]
[311910266,1705493444290,-500.0,0.00022185,2]
[311910267,1705493444299,-500.0,0.00022185,2]
[311910268,1705493444309,-500.0,0.00022185,2]
[311910269,1705493444318,-500.0,0.00022185,2]
[311910270,1705493444327,-242.43603172,0.00022186,2]
[311910271,1705493444337,-4487.11513148,0.00022186,2]
[311910272,1705493444347,-213.06562269,0.00022186,2]
[311910273,1705493444358,-276.10922911,0.00022186,2]
[311910274,1705493444368,-218.60881656,0.00022186,2]
[311910275,1705493444377,-155.0,0.00022186,2]
[311910276,1705493444386,-156.70746691,0.00022186,2]
[311910278,1705493444395,-2529.20752284,0.00022187,2]
[311910280,1705493444405,-500.0,0.00022187,2]
[311910281,1705493444414,-500.0,0.00022187,2]
[311910282,1705493444424,-500.0,0.00022187,2]
[311910283,1705493444434,-500.0,0.00022187,2]
[311910284,1705493444446,-500.0,0.00022187,2]
[311910285,1705493444456,-500.0,0.00022187,2]
[311910286,1705493444465,-500.0,0.00022187,2]
[311910287,1705493444474,-500.0,0.00022187,2]
[311910288,1705493444484,-500.0,0.00022187,2]
[311910290,1705493444493,-500.0,0.00022187,2]
[311910292,1705493444502,-598.9,0.00022187,2]
[311910294,1705493444512,-500.0,0.00022187,2]
[311910296,1705493444521,-1035.98,0.00022187,2]
[311910298,1705493444533,-654.02,0.00022187,2]
[311910299,1705493444542,-4007.17,0.00022187,2]
[311910300,1705493444552,-500.0,0.00022187,2]
[311910301,1705493444561,-630.1,0.00022187,2]
[311910302,1705493444571,-500.0,0.00022187,2]
[311910303,1705493444581,-500.0,0.00022187,2]
[311910304,1705493444590,-623.83128006,0.00022187,2]
[311910305,1705493444600,-500.0,0.00022187,2]
[311910306,1705493444611,-500.0,0.00022187,5]
[311910307,1705493444621,-500.0,0.00022187,2]
[311910308,1705493444630,-500.0,0.00022187,2]
[311910309,1705493444639,-500.0,0.00022187,2]
[311910310,1705493444648,-500.0,0.00022187,2]
[311910311,1705493444658,-500.0,0.00022187,2]
[311910312,1705493444667,-500.0,0.00022187,2]
[311910313,1705493444676,-500.0,0.00022187,2]
[311910314,1705493444686,-500.0,0.00022187,2]
[311910315,1705493444695,-500.0,0.00022187,2]
[311910316,1705493444705,-360.97,0.00022187,2]
[311910317,1705493444714,-500.0,0.00022187,2]
[311910318,1705493444724,-500.0,0.00022187,2]
[311910319,1705493444734,-500.0,0.00022187,2]
[311910320,1705493444744,-500.0,0.00022187,2]
[311910321,1705493444754,-582.14,0.00022187,2]
[311910322,1705493444763,-228.98,0.00022187,2]
[311910323,1705493444772,-500.0,0.00022187,2]
[311910324,1705493445040,-500.0,0.00022187,2]
[311910325,1705493445050,-351.81,0.00022187,2]
[311910326,1705493445059,-276.34,0.00022187,2]
[311910327,1705493445069,-218.94,0.00022187,2]
[311910328,1705493445078,-53416.23332488,0.00022188,2]
[311910329,1705493445092,-28995.96463563,0.00022188,2]
[311910330,1705493445103,-5989.44963737,0.00022188,2]
[311910331,1705493445142,-42.14888052,0.00022188,2]
[311910332,1705493445153,-36173.8779315,0.00022188,2]
[311910333,1705493445165,-1258.20967572,0.00022188,2]
[311910346,1705493445886,-275.707,0.00022188,2]
[311910347,1705493445899,-3138.36445112,0.00022188,2]
[311910348,1705493445908,-757.61,0.00022188,2]
[311910349,1705493445917,-757.61,0.00022188,2]
[311910350,1705493445926,-465.3370016,0.00022189,2]
[311910351,1705493445935,-375.55403971,0.00022189,2]
[311910352,1705493445944,-905.02004032,0.00022189,2]
[311910353,1705493445956,-5454.34442759,0.00022189,2]
[311910354,1705493445967,-17750.45719013,0.00022189,2]
[311910355,1705493445978,-785.11579648,0.00022189,2]
[311910356,1705493445990,-1469.78,0.00022189,2]
[311910357,1705493446002,-1187.12788416,0.00022189,2]
[311910358,1705493446014,-5844.92460899,0.00022189,2]
[311910359,1705493446031,-500.0,0.00022187,2]
[311910360,1705493446041,-972.66898067,0.00022189,2]
[311910361,1705493446064,-7619.99999985,0.00022189,2]
[311910362,1705493446076,-41512.65770557,0.00022189,2]
[311910363,1705493446087,-3687.05764394,0.00022189,2]
[311910364,1705493446234,-264.30000001,0.00022189,2]
[311910366,1705493502122,500.0,0.00022187,7]
[311910367,1705493519927,299.99,0.00022187,7]
[311910368,1705493653736,165.916081,0.00024533,7]
[311910369,1705493656503,165.916081,0.00024533,7]
[311910370,1705493663912,151.0,0.00024533,7]
[311910371,1705493680780,192.93,0.00021142,10]
[311910372,1705493680985,192.93,0.0002166,10]
[311910373,1705493681206,192.93,0.00022178,10]
[311910374,1705493681593,192.93,0.00022696,10]
[311910375,1705493681980,192.93,0.00023214,10]
[311910376,1705493772681,154.987923,0.00024462,7]
[311910377,1705493782648,151.0,0.00024462,7]
[311910378,1705493801280,249.47575,0.00024462,7]
[311910379,1705493804037,249.47575,0.00024462,7]
[311910380,1705493843176,316.372644,0.00024462,7]
[311910381,1705493846527,316.372644,0.00024462,7]
[311910382,1705493856831,151.0,0.00024462,7]
[311910383,1705493860517,151.0,0.00024462,7]
[311910384,1705493892252,151.0,0.00024462,7]
[311910385,1705493895663,151.0,0.00024462,7]
[311910386,1705493901523,151.0,0.00024462,7]
[311910387,1705493908220,151.0,0.00024462,7]
[311910388,1705493962701,151.0,0.00024462,7]
[311910389,1705493984713,151.0,0.00024462,7]
[311910390,1705493996299,224.528175,0.00024462,7]
[311910391,1705493999158,224.528175,0.00024462,7]
[311910392,1705494004201,151.0,0.00024462,7]
[311910393,1705494008035,151.0,0.00024462,7]
[311910394,1705494072981,155.642563,0.00024462,7]
[311910395,1705494076802,151.0,0.00024462,7]
[311910396,1705494092188,151.0,0.00024462,7]
[311910397,1705494135051,154.085623,0.00024462,7]
[311910398,1705494137022,151.0,0.00024462,7]
[311910399,1705494139632,151.0,0.00024462,7]
[311910401,1705494197851,151.0,0.0002438,7]
[311910402,1705494211174,284.73538,0.0002438,7]
[311910403,1705494214844,284.73538,0.0002438,7]
[311910404,1705494219886,156.613492,0.0002438,7]
[311910405,1705494230746,202.075357,0.0002438,7]
[311910406,1705494233957,202.075357,0.0002438,7]
[311910407,1705494242726,151.0,0.0002438,7]
[311910408,1705494321018,151.0,0.0002438,7]
[311910409,1705494325031,163.263869,0.0002438,7]
[311910410,1705494331861,151.0,0.0002438,7]
[311910411,1705494337920,151.0,0.0002438,7]
[311910412,1705494382023,151.0,0.0002438,7]
[311910413,1705494384946,151.0,0.0002438,7]
[311910414,1705494392959,151.0,0.0002438,7]
[311910415,1705494394077,201.0,0.00026584,8]
[311910416,1705494436025,157.735992,0.0002438,7]
[311910417,1705494442659,151.0,0.0002438,7]
[311910418,1705494460321,181.867821,0.0002438,7]
[311910419,1705494463421,181.867821,0.0002438,7]
[311910420,1705494485590,151.0,0.0002438,7]
[311910421,1705494490402,150.0,0.00017747,2]
[311910422,1705494490424,150.0,0.00017747,2]
[311910423,1705494490446,60.82570241,0.00017747,2]
[311910424,1705494511956,268.61350558,0.0002438,7]
[311910425,1705494519724,283.18572721,0.00017747,2]
[311910426,1705494537748,150.0,0.00017747,2]
[311910427,1705494537770,150.0,0.00017747,2]
[311910428,1705494537790,18.6835228,0.00017747,2]
[311910429,1705494550727,252.57206,0.00017747,2]
[311910430,1705494551093,-287.26,0.00019009,2]
[311910431,1705494565494,151.0,0.0002438,7]
[311910432,1705494625971,256.261842,0.0002438,7]
[311910433,1705494629093,256.261842,0.0002438,7]
[311910475,1705494632109,-250.0,0.000205,2]
[311910477,1705494632118,-264.87647643,0.00020921,2]
[311910480,1705494632129,-883.94005892,0.00020921,2]
[311910484,1705494632166,-851.18346465,0.00020921,2]
[311910485,1705494632176,-150.0,0.00020923,2]
[311910486,1705494632185,-156.07,0.00020997,2]
[311910488,1705494632194,-157.58,0.00021064,2]
[311910489,1705494632203,-163.46,0.0002116,2]
[311910491,1705494632212,-287.26,0.00021273,2]
[311910493,1705494632222,-165.96,0.0002128,2]
[311910495,1705494632231,-161.04379098,0.00021332,2]
[311910497,1705494632240,-157.58,0.0002143,2]
[311910499,1705494632249,-340.48,0.0002143,2]
[311910501,1705494632258,-300.0,0.00021441,2]
[311910503,1705494632268,-9784.38274437,0.00021442,2]
[311910506,1705494632283,-346.48303694,0.00021442,2]
[311910508,1705494632298,-851.74822542,0.00021442,2]
[311910509,1705494632309,-420.30646271,0.00021442,2]
[311910510,1705494632338,-853.97955,0.00021442,2]
[311910511,1705494632350,-580.93867792,0.00021442,2]
[311910519,1705494633457,155.454626,0.0002438,7]
[311910520,1705494637762,151.0,0.0002438,7]
[311910532,1705494638125,-2545.65834162,0.00021442,2]
[311910533,1705494638140,-283.399807,0.00021442,2]
[311910534,1705494638208,-2490.97927769,0.00021442,2]
[311910535,1705494638248,-4448.53137466,0.00021442,2]
[311910536,1705494638258,-1000.0,0.00021445,2]
[311910537,1705494638267,-31.39188582,0.00021513,2]
[311910538,1705494638600,-592.08019123,0.00021513,2]
[311910539,1705494638615,-113.41792295,0.00021513,2]
[311910540,1705494638624,-150.99,0.00021566,2]
[311910541,1705494638635,-429.31409633,0.00021566,2]
[311910542,1705494638648,-302.87590367,0.00021566,2]
[311910543,1705494638658,-385.11054487,0.00021631,2]
[311910544,1705494638680,-347.26945513,0.00021631,2]
[311910545,1705494638689,-236.55,0.00021644,2]
[311910546,1705494638700,-155.0,0.00021701,2]
[311910547,1705494638710,-723.14,0.00021711,2]
[311910548,1705494638720,-157.58,0.00021796,2]
[311910549,1705494638731,-726.58,0.00021809,2]
[311910550,1705494638741,-499.99,0.00021809,2]
[311910551,1705494638750,-250.0,0.00021918,2]
[311910552,1705494638761,-723.63,0.0002193,2]
[311910553,1705494638770,-155.0,0.00021942,2]
[311910554,1705494638780,-734.0,0.00021956,2]
[311910555,1705494638794,-394.95584771,0.00021962,2]
[311910556,1705494638805,-246.96938852,0.00021962,2]
[311910557,1705494638815,-726.58,0.00021988,2]
[311910558,1705494638825,-719.04,0.00022027,2]
[311910560,1705494638834,-721.61,0.00022075,2]
[311910562,1705494638843,-5000.0,0.00022089,2]
[311910564,1705494638853,-6972.1954,0.00022089,2]
[311910566,1705494638863,-5829.5385,0.00022089,2]
[311910568,1705494638874,-629.328,0.00022089,2]
[311910570,1705494638883,-725.66,0.00022133,2]
[311910572,1705494638893,-288.36266561,0.00022144,2]
[311910574,1705494638903,-157.58,0.00022162,2]
[311910576,1705494638912,-800.0,0.00022164,2]
[311910578,1705494638921,-503.84036235,0.00022183,2]
[311910580,1705494638931,-501.09834726,0.00022184,2]
[311910582,1705494638940,-275.3318651,0.00022184,2]
[311910584,1705494638949,-314.7616955,0.00022184,2]
[311910586,1705494638958,-500.0,0.00022185,2]
[311910588,1705494638969,-500.0,0.00022185,2]
[311910590,1705494638978,-500.0,0.00022185,2]
[311910592,1705494638987,-500.0,0.00022185,2]
[311910594,1705494638996,-500.0,0.00022185,2]
[311910596,1705494639005,-500.0,0.00022185,2]
[311910598,1705494639014,-500.0,0.00022185,2]
[311910600,1705494639023,-1703.26688964,0.00022186,2]
[311910602,1705494639032,-314.1207076,0.00022186,2]
[311910604,1705494639041,-727.4011105,0.00022186,2]
[311910606,1705494639050,-42192.49474767,0.00022186,2]
[311910608,1705494639059,-209.87,0.00022187,2]
[311910610,1705494639068,-500.0,0.00022187,2]
[311910612,1705494639077,-500.0,0.00022187,2]
[311910614,1705494639087,-433.83,0.00022187,2]
[311910616,1705494639097,-652.01,0.00022187,2]
[311910618,1705494639106,-793.03,0.00022187,2]
[311910620,1705494639115,-402.87,0.00022187,2]
[311910622,1705494639125,-3297.31906357,0.00022188,3]
[311910624,1705494639134,-1649.27338412,0.00022188,2]
[311910626,1705494639144,-6821.63395926,0.00022188,2]
[311910628,1705494639154,-500.0,0.00022188,2]
[311910630,1705494639163,-500.0,0.00022188,2]
[311910633,1705494639172,-500.0,0.00022188,2]
[311910665,1705494639492,-500.0,0.00022188,2]
[311910666,1705494639502,-500.0,0.00022188,2]
[311910667,1705494639513,-500.0,0.00022188,2]
[311910668,1705494639522,-500.0,0.00022188,2]
[311910669,1705494639531,-500.0,0.00022188,2]
[311910671,1705494639541,-500.0,0.00022188,2]
[311910672,1705494639551,-500.0,0.00022188,2]
[311910675,1705494639562,-192.49,0.00022188,2]
[311910676,1705494639571,-500.0,0.00022188,2]
[311910678,1705494639581,-500.0,0.00022188,2]
[311910680,1705494639590,-500.0,0.00022188,2]
[311910683,1705494639599,-500.0,0.00022188,2]
[311910685,1705494639609,-500.0,0.00022188,2]
[311910687,1705494639618,-500.0,0.00022188,2]
[311910689,1705494639627,-500.0,0.00022188,2]
[311910691,1705494639637,-500.0,0.00022188,2]
[311910693,1705494639646,-500.0,0.00022188,2]
[311910695,1705494639655,-150.0,0.00022188,2]
[311910696,1705494639664,-500.0,0.00022188,2]
[311910698,1705494639674,-500.0,0.00022188,2]
[311910701,1705494639685,-500.0,0.00022188,2]
[311910703,1705494639694,-500.0,0.00022188,2]
[311910705,1705494639703,-500.0,0.00022188,2]
[311910707,1705494639713,-154.85,0.00022188,2]
[311910709,1705494639723,-500.0,0.00022188,2]
[311910711,1705494639732,-190.89,0.00022188,2]
[311910713,1705494639741,-500.0,0.00022188,2]
[311910715,1705494639750,-500.0,0.00022188,2]
[311910717,1705494639760,-500.0,0.00022188,2]
[311910719,1705494639769,-500.0,0.00022188,2]
[311910721,1705494639778,-210.84,0.00022188,2]
[311910723,1705494639788,-500.0,0.00022188,2]
[311910725,1705494639805,-500.0,0.00022188,2]
[311910727,1705494639814,-500.0,0.00022188,2]
[311910729,1705494639826,-500.0,0.00022188,2]
[311910731,1705494639835,-500.0,0.00022188,2]
[311910733,1705494639844,-382.81,0.00022188,2]
[311910735,1705494639854,-500.0,0.00022188,2]
[311910737,1705494639864,-508.33,0.00022188,2]
[311910739,1705494639874,-500.0,0.00022188,2]
[311910741,1705494639883,-500.0,0.00022188,2]
[311910743,1705494639893,-181.36,0.00022188,2]
[311910745,1705494639902,-203.48,0.00022188,2]
[311910747,1705494639912,-500.0,0.00022188,2]
[311910749,1705494639922,-247.13,0.00022188,2]
[311910751,1705494639931,-500.0,0.00022188,2]
[311910753,1705494639941,-500.0,0.00022188,2]
[311910755,1705494639950,-500.0,0.00022188,2]
[311910757,1705494639959,-500.0,0.00022188,2]
[311910759,1705494639969,-500.0,0.00022188,2]
[311910761,1705494639979,-500.0,0.00022188,2]
[311910763,1705494639988,-163.75,0.00022188,2]
[311910766,1705494639997,-434.27,0.00022188,2]
[311910768,1705494640007,-500.0,0.00022188,2]
[311910770,1705494640017,-500.0,0.00022188,2]
[311910772,1705494640026,-711.61,0.00022188,2]
[311910774,1705494640035,-500.0,0.00022188,2]
[311910776,1705494640044,-500.0,0.00022188,2]
[311910778,1705494640053,-500.0,0.00022188,2]
[311910780,1705494640063,-500.0,0.00022188,2]
[311910782,1705494640071,-500.0,0.00022188,2]
[311910784,1705494640080,-500.0,0.00022188,5]
[311910786,1705494640089,-500.0,0.00022188,2]
[311910788,1705494640099,-500.0,0.00022188,2]
[311910790,1705494640108,-230.75,0.00022188,2]
[311910792,1705494640118,-500.0,0.00022188,2]
[311910794,1705494640127,-500.0,0.00022188,2]
[311910796,1705494640136,-320.22,0.00022188,2]
[311910798,1705494640147,-500.0,0.00022188,2]
[311910800,1705494640156,-500.0,0.00022188,2]
[311910802,1705494640165,-213.7,0.00022188,2]
[311910804,1705494640174,-156.63,0.00022188,2]
[311910806,1705494640183,-500.0,0.00022188,2]
[311910808,1705494640192,-500.0,0.00022188,2]
[311910810,1705494640201,-500.0,0.00022188,2]
[311910812,1705494640211,-500.0,0.00022188,2]
[311910814,1705494640220,-500.0,0.00022188,2]
[311910816,1705494640228,-500.0,0.00022188,2]
[311910818,1705494640238,-500.0,0.00022188,2]
[311910820,1705494640247,-500.0,0.00022188,2]
[311910822,1705494640256,-234.25,0.00022188,2]
[311910824,1705494640265,-500.0,0.00022188,2]
[311910826,1705494640274,-500.0,0.00022188,2]
[311910828,1705494640283,-500.0,0.00022188,2]
[311910830,1705494640292,-422.72,0.00022188,2]
[311910832,1705494640302,-500.0,0.00022188,2]
[311910834,1705494640311,-500.0,0.00022188,2]
[311910836,1705494640320,-311.00380102,0.00022188,2]
[311910838,1705494640330,-500.0,0.00022188,2]
[311910840,1705494640339,-500.0,0.00022188,2]
[311910842,1705494640348,-500.0,0.00022188,2]
[311910844,1705494640359,-662.9,0.00022188,2]
[311910846,1705494640368,-662.9,0.00022188,2]
[311910848,1705494640377,-500.0,0.00022188,2]
[311910850,1705494640386,-500.0,0.00022188,2]
[311910852,1705494640395,-500.0,0.00022188,2]
[311910854,1705494640405,-500.0,0.00022188,2]
[311910856,1705494640414,-229.95,0.00022188,2]
[311910858,1705494640423,-500.0,0.00022188,2]
[311910860,1705494640432,-229.61,0.00022188,2]
[311910862,1705494640441,-442.21,0.00022188,2]